Cogmind - Beta 14 @@@ ROGUE MODE // 2024.08.29 @ 18:36:03 Player: Daffa0360 Result: Destroyed by ZN-JAD(R) with Subdweller Beam Cannon Performance ------------- Evolutions (0) 0 Regions Visited (2) 400 Robots Destroyed (22) 110 Value Destroyed (677) 677 Prototype IDs (11) 220 Alien Tech Used (0) 0 Bonus (0) 0 TOTAL SCORE: 1407 Bonus ------- None Cogmind --------- Core Integrity 0/250 Matter 300/300 Energy 180/180 System Corruption 0% Temperature Cool (9) Movement Walking (280) Ox2 Location -10/Subcaves Parts ------- > --- POWER (1) -------- Meta Core > --- PROPULSION (2+1) - Makeshift Leg > --- UTILITY (2+1) ---- Large Storage Unit Scrap Shield (+) > --- WEAPON (2+1) ----- Flamer Makeshift Hammer > --- INVENTORY (15) --- Light Ion Engine Subdweller Power Source Subdweller Power Source Subdweller Monowheel Improved Terrain Scanner Seismic Detector Makeshift System Shield Assault Rifle Battle Rifle Subdweller Machine Gun Mining Laser Scrap Shield Fragment (49) Scrap Shield Fragment (46) Peak State ------------ > --- POWER ------------ Meta Core > --- PROPULSION ------- Spiked Treads Makeshift Leg > --- UTILITY ---------- Large Storage Unit Scrap Shield > --- WEAPON ----------- Flamer Makeshift Hammer > --- INVENTORY -------- Light Ion Engine Subdweller Power Source Subdweller Power Source Subdweller Monowheel Improved Terrain Scanner Seismic Detector Makeshift System Shield Assault Rifle Battle Rifle Subdweller Machine Gun Mining Laser [Rating: 32] Favorites ----------- Power Ion Engine Engine Ion Engine Power Core Meta Core Propulsion Compact Wheel Treads Spiked Treads Leg Makeshift Leg Wheel Compact Wheel Utility Large Storage Unit Device Seismic Detector Storage Large Storage Unit Processor Targeting Computer Protection Tower Shield Weapon Mining Laser Energy Gun Medium Laser Ballistic Gun Assault Rifle Ballistic Cannon Battle Cannon Special Weapon Mining Laser Impact Weapon Makeshift Hammer Build | -11 -10 -10 ------- Run | Yrd Mat Sub Slots Evolved . | . . . Power . | . . . Propulsion . | . . . Utility . | . . . Weapon . | . . . Parts Attached 25 | . 4 21 Power 2 | . . 2 Engine 1 | . . 1 Core 1 | . . 1 Reactor . | . . . Propulsion 5 | . 1 4 Treads 1 | . . 1 Leg 1 | . . 1 Wheel 3 | . 1 2 Hover . | . . . Flight . | . . . Utility 9 | . 2 7 Device 3 | . . 3 Storage 3 | . 1 2 Processor 1 | . 1 . Hackware . | . . . Protection 2 | . . 2 Artifact . | . . . Weapon 9 | . 1 8 Energy Gun 1 | . . 1 Energy Cannon . | . . . Ballistic Gun 1 | . . 1 Ballistic Cannon 2 | . . 2 Launcher . | . . . Special Weapon 4 | . 1 3 Impact Weapon 1 | . . 1 Slashing Weapon . | . . . Piercing Weapon . | . . . Special Melee Weapon . | . . . Unidentified Prototypes . | . . . Parts Lost 6 | . . 6 Power 1 | . . 1 Propulsion 2 | . . 2 Utility 1 | . . 1 Weapon 2 | . . 2 Highest Loss Streak 2 | . . 2 To Critical Strikes . | . . . Average Slot Usage (%) 69 | . 96 67 Engine 5 | . 14 4 Core 4 | . . 4 Treads 3 | . . 4 Leg 6 | . 19 5 Wheel 8 | . 8 8 Device 8 | . . 8 Storage 9 | . 14 9 Protection 3 | . . 3 Energy Gun 4 | . . 4 Ballistic Gun 6 | . 27 5 Special Weapon 5 | . . 5 Impact Weapon 1 | . . 1 Peak Build Rating 32 | 6 8 32 Average Rating 23 | 6 7 25 On Entrance 6 | 6 6 8 Naked Turns . | . . . Heaviest Build 68 | 12 27 68 Greatest Support 36 | 20 20 36 Greatest Overweight (x) 4 | . 2 4 Average Overweight (x) 1 | . 1 1 Largest Inventory Capacity 15 | 8 15 15 Average Capacity 14 | 8 12 14 Most Carried 15 | 8 8 15 Average Carried 12 | 6 7 12 Final Capacity 15 | 8 15 15 Final Carried 13 | 7 8 13 Class Distribution -------------------- 97% | Mutant Dominant Class ---------------- Mutant | -10/Materials Mutant | -10/Subcaves Resources | -11 -10 -10 ----------- Run | Yrd Mat Sub Matter Collected 735 | 290 102 343 Remotely . | . . . Salvage Created 744 | 153 149 442 Parts 44 | 13 4 27 Haulers Intercepted . | . . . Recyclers Shooed . | . . . Parts Field Recycled . | . . . Retrieved Matter . | . . . Parts Self-Destructed 8 | . . 8 Prevented . | . . . Kills | -11 -10 -10 ------- Run | Yrd Mat Sub Combat Hostiles Destroyed 16 | . 3 13 Melee 3 | . . 3 Guns 11 | . 3 8 Cannons 1 | . . 1 Classes Destroyed 6 | 2 2 2 Tunneler 4 | 4 . . Recycler 1 | 1 . . Watcher 1 | . 1 . Grunt 3 | . 3 . Sentry 1 | . . 1 Subdweller 12 | . . 12 Best Kill Streak 4 | 4 2 3 Combat Bots Only 3 | . 2 3 Max Kills in Single Turn 2 | 1 2 1 Gunslinging 1 | . 1 . Exploded . | . . . Melee 1 | . . 1 Uniques/NPCs Destroyed . | . . . Combat | -11 -10 -10 -------- Run | Yrd Mat Sub Hostile Shots Fired 80 | . 18 62 Missed 17 | . 2 15 Damage Taken 1453 | . 176 1277 Core 261 | . 43 218 Absorbed by Shields . | . . . Core Remaining (%) 100 | 100 . . Volleys Fired 93 | 15 13 65 Largest 2 | 2 2 2 Hottest 150 | 40 100 150 Shots Fired 165 | 30 25 110 Gun 126 | 30 24 72 Cannon 13 | . . 13 Launcher . | . . . Special 26 | . 1 25 Kinetic 94 | 30 24 40 Thermal 71 | . 1 70 Explosive . | . . . Electromagnetic . | . . . Robot Hit Streak 21 | 8 8 21 Robot Miss Streak 4 | 4 1 1 Penetration Max . | . . . Secondary Targets 3 | . 1 2 Max Gunslinging Chain 1 | . 1 1 Shots Hit Robots 102 | 19 20 63 Core Hits 36 | 6 8 22 Critical Kills 1 | . . 1 Critical Parts Destroyed . | . . . Critical Strikes 8 | . . 8 Burn 6 | . . 6 Blast 1 | . . 1 Smash 1 | . . 1 Melee Attacks 18 | . . 18 Impact 18 | . . 18 Slashing . | . . . Piercing . | . . . Sneak Attacks . | . . . Combat Hostiles . | . . . Follow-up Attacks . | . . . Damage Inflicted 1632 | 232 280 1120 Guns 1000 | 232 280 488 Cannons 177 | . . 177 Explosions . | . . . Melee 455 | . . 455 Ramming . | . . . Kinetic 851 | 232 280 339 Thermal 326 | . . 326 Explosive . | . . . Electromagnetic . | . . . Impact 455 | . . 455 Slashing . | . . . Piercing . | . . . Highest Corruption . | . . . Average Corruption . | . . . Corruption Purged . | . . . Corruption Blocked . | . . . Overload Shots . | . . . Overflow Damage 76 | . . 76 Projectiles . | . . . Explosions . | . . . Melee 76 | . . 76 Knockbacks 4 | . . 4 Impact 2 | . . 2 Kinetic 2 | . . 2 Secondary . | . . . Self-Inflicted Damage . | . . . Shots . | . . . Rammed . | . . . Targets Rammed . | . . . Kicked . | . . . Crushed . | . . . Highest Temperature 20 | . 20 3 Average Temperature 7 | . 12 3 Received Heat Transfer 309 | . 96 213 Siege Activations . | . . . Robots Corrupted 1 | . . 1 Combat Hostiles 1 | . . 1 Parts Fried . | . . . Impact Corruptions 3 | . . 3 Robots Melted . | . . . Combat Hostiles . | . . . Parts Melted . | . . . Heat Transferred 1406 | . . 1406 Parts Sabotaged . | . . . Parts Stolen . | . . . Parts Stripped . | . . . Power Chain Reactions . | . . . Alert | -11 -10 -10 ------- Run | Yrd Mat Sub Peak Influence 109 | 25 109 . Initial 16 | . 16 . Average 51 | 13 62 . Maximum Alert Level . | . . . Low Security (%) 100 | 100 100 . Level 1 . | . . . Level 2 . | . . . Level 3 . | . . . Level 4 . | . . . Level 5 . | . . . High Security . | . . . Max Security . | . . . Squads Dispatched 3 | . 3 . Investigation 1 | . 1 . Extermination . | . . . Reinforcement 2 | . 2 . Assault . | . . . Garrison . | . . . Intercept . | . . . Searches Triggered . | . . . Construction Impeded . | . . . Haulers Reinforced . | . . . Active Scanning Responses . | . . . Cargo Convoy Interrupts . | . . . Stealth | -11 -10 -10 --------- Run | Yrd Mat Sub Distress Signals . | . . . Communications Jammed . | . . . Distress Signals . | . . . Times Spotted 25 | . 5 20 Peak Tracking Total 3 | . 2 3 Tactical Retreats 1 | . . 1 Traps | -11 -10 -10 ------- Run | Yrd Mat Sub Traps Triggered 3 | . 1 2 Indirectly . | . . . Trap Hack Attempts . | . . . Triggered . | . . . Disarmed . | . . . Reprogrammed . | . . . Reused 1 | . . 1 Traps Extracted . | . . . Installed 1 | . . 1 Triggered . | . . . Most Traps Carried 1 | . . 1 Machines | -11 -10 -10 ---------- Run | Yrd Mat Sub Machines Disabled 1 | . . 1 Max in Single Turn 1 | . . 1 Machines Repaired . | . . . Machines Dismantled . | . . . Machines Sabotaged . | . . . Overloaded Fab Kills . | . . . Hacking | -11 -10 -10 --------- Run | Yrd Mat Sub Machines Accessed 2 | . . 2 Terminals . | . . . Fabricators . | . . . Repair Stations . | . . . Recycling Units . | . . . Scanalyzers . | . . . Garrison Access . | . . . Total Hacks 5 | . . 5 Successful 5 | . . 5 Failed . | . . . Catastrophic . | . . . Database Lockouts . | . . . Manual . | . . . Terminals . | . . . Fabricators . | . . . Repair Stations . | . . . Recycling Units . | . . . Scanalyzers . | . . . Garrison Access . | . . . Terminal Hacks 5 | . . 5 Record 4 | . . 4 Derelict Proto ID Bank 1 | . . 1 Fabricator Hacks . | . . . Repair Station Hacks . | . . . Recycling Unit Hacks . | . . . Scanalyzer . | . . . Garrison Access Hacks . | . . . Unauthorized Hacks . | . . . Terminals . | . . . Fabricators . | . . . Repair Stations . | . . . Recycling Units . | . . . Scanalyzers . | . . . Garrison Access . | . . . Data Cores Recovered . | . . . Used . | . . . Hacking Detections . | . . . Full Trace Events . | . . . Feedback Events . | . . . Feedback Blocked . | . . . Robot Schematics Acquired . | . . . Robots Built . | . . . Authchips . | . . . Time . | . . . Total Robot Build Rating . | . . . Part Schematics Acquired . | . . . Parts Built . | . . . Authchips . | . . . Time . | . . . Total Part Build Rating . | . . . Parts Repaired . | . . . Time . | . . . Parts Recycled . | . . . Recycled Matter . | . . . Retrieved Matter . | . . . Retrieved Components . | . . . Parts Scanalyzed . | . . . Part Schematics Acquired . | . . . Parts Damaged . | . . . Bothacking | -11 -10 -10 ------------ Run | Yrd Mat Sub Used RIF Installer . | . . . Robots Hacked . | . . . Non-combat . | . . . Combat . | . . . Robot Hacks Applied . | . . . Relay Couplers Released . | . . . Fabnet Peak Effective % . | . . . Robots Rewired . | . . . Allies Hacked . | . . . Hacks Repelled . | . . . Allies | -11 -10 -10 -------- Run | Yrd Mat Sub Total Allies . | . . . Largest Group . | . . . Highest-Rated Group . | . . . Highest-Rated Ally . | . . . Total Orders . | . . . Ally Attacks . | . . . Total Damage . | . . . Kills . | . . . Allies Corrupted . | . . . Allies Melted . | . . . Intel | -11 -10 -10 ------- Run | Yrd Mat Sub Robot Analysis Total . | . . . Derelict Logs Recovered 1 | . . 1 Drone Launches . | . . . Drone Recoveries . | . . . Exploration | -11 -10 -10 ------------- Run | Yrd Mat Sub Turns Passed 6125 | 114 391 5620 Spaces Moved 2682 | 52 277 2353 Core . | . . . Treads . | . . . Legs 1041 | 52 98 891 Wheels 1641 | . 179 1462 Hover . | . . . Flight . | . . . Fastest Speed 80 | 120 110 80 Average Speed 148 | 120 113 152 Slowest Speed 280 | 120 120 280 Overloaded Moves . | . . . Propulsion Burnouts . | . . . Robots Hopped . | . . . Cave-ins Triggered . | . . . Exploration Rate (%) 39 | 4 32 83 Regions Visited 2 Branch Regions 1 Pre-discovered Areas 2 | . . 2 Known Exits Taken . | . . . Unknown Exits Taken 2 | 1 1 . Scrap Searched 11 | . . 11 Spaces Dug 4 | . . 4 Terrain Destroyed 4 | . . 4 Melee 2 | . . 2 Projectile 2 | . . 2 AOE . | . . . Terrain Rammed . | . . . Walls Destroyed . | . . . Machines Disabled . | . . . Actions | -11 -10 -10 --------- Run | Yrd Mat Sub Total 4601 | 74 325 4202 Wait 1733 | 3 28 1702 Move 2680 | 51 276 2353 Hop . | . . . Pick Up 36 | 3 3 30 Fast Attach 6 | . . 6 Attach 9 | . 1 8 Detach 2 | . . 2 Swap 10 | . 3 7 Drop 12 | 2 1 9 Fire 93 | 15 13 65 Melee 18 | . . 18 Ram . | . . . Kick . | . . . Crush . | . . . Escape Stasis . | . . . Rewire . | . . . Trap 1 | . . 1 Miscellaneous 1 | . . 1 Route ------- -11/Scrapyard -10/Materials -10/Subcaves (discovered 2 exits: [*Mat x2]) History --------- Turn | Location | Event 1 | -11/Scrapyard | Discovered new exit (range 2) 115 | -11/Scrapyard | Entered Materials 312 | -10/Materials | Build established: Mutant 505 | -10/Materials | Discovered new exit (range 2) 506 | -10/Materials | Entered Subcaves 552 | -10/Subcaves | Shifting Twisted Machinery released Mak. Leg 570 | -10/Subcaves | Shifting Twisted Machinery released Piercing Trap 972 | -10/Subcaves | Visited 4L-MR0's lab 987 | -10/Subcaves | Found Tower Shield 989 | -10/Subcaves | Attached Tower Shield, gained temporary slots: Power, Propulsion x2, Utility x2, Weapon x2 1156 | -10/Subcaves | Visited Clippyterm 1160 | -10/Subcaves | Learned Research machine intel 2411 | -10/Subcaves | A swath of the cavern ceiling suddenly collapsed 2523 | -10/Subcaves | Ambushed by Subdwellers from Twisted Machinery 3136 | -10/Subcaves | Disturbed a concealed Subdweller 3418 | -10/Subcaves | Discovered new exit (range 10) 3581 | -10/Subcaves | A Subdweller sparked back to life 3581 | -10/Subcaves | A Subdweller sparked back to life 3581 | -10/Subcaves | A Subdweller sparked back to life 3607 | -10/Subcaves | Found Meta Core 3609 | -10/Subcaves | Attached Meta Core, gained temporary slots: Propulsion, Utility, Weapon 3664 | -10/Subcaves | Shifting Twisted Machinery released Sub. Machine Gun 3664 | -10/Subcaves | Shifting Twisted Machinery released Flamer 3696 | -10/Subcaves | Shifting Twisted Machinery released Sub. Power Source 3782 | -10/Subcaves | Shifting Twisted Machinery released Sub. Beam Cannon 3800 | -10/Subcaves | Learned location of Zion (-6) 3800 | -10/Subcaves | Met a Zionite searching for "candidates" 5862 | -10/Subcaves | Core integrity fell below 50% 6002 | -10/Subcaves | Core integrity fell below 20% 6005 | -10/Subcaves | Discovered new exit (range 11) 6126 | -10/Subcaves | Destroyed by ZN-JAD(R) with Subdweller Beam Cannon Last Messages --------------- 05878_ DY-UF0(R) destroyed. 05880_ Acquired 20 matter. 05886_ Acquired Scrap Shield Fragment. 05892_ Subatomizers dissect the Sub. Power Source. 05893_ Acquired Scrap Shield Fragment. 05902_ Subatomizers dissect the Sub. Power Source. 05923_ QB-AJB(R): "SLEEPOVER!" 06001_ Destroyed Sub. Power Source. 06001_ QB-AJB(R) system corrupted by crushing effect. 06003_ QB-AJB(R) knocked back. 06005_ EXIT=FOUND 06007_ Spk. Treads destroyed. 06010_ Destroyed Sub. Monowheel. 06010_ QB-AJB(R) system corrupted by crushing effect. 06011_ QB-AJB(R) system terminally corrupted. 06121_ ZN-JAD(R) knocked back. Map ----- +----------------------------------------------------+ | | | | | | | | | | | | | | | ?????????????????????????????????????????????????? | | ?????????????????????????????????????????????????? | | ?????????????????????????????????????????????????? | | ?????????????????????????????????????????????????? | | ?????????????????????????????????????????????????? | | ?????????????????????????????????????????????????? | | ?????????????????????????????????????????????????? | | ?????????????????????????????????????????????????? | | ?????????????????????????????????????????????????? | | ????????????????????#####????????????????????????? | | ?????????????????????$$$"##??????????????????????? | | ??????????????????????? #??????????????????????? | | ?????????????????????#### #??????????????????????? | | ?????????????????????# "#??????????????????????? | | ????????????????????### ###??????????????????????? | | ????????????????????# < <#######?????????????????? | | ??????????????????### # ;#?????????????????? | | ??????????????????# #??????????????????? | | ??????????###?????## @ ## #????????????? | | ?????????##"######## R #???????????? | | ?????????#"" ##"""## ????????? | | ????###### "" "# ?????????? | | ?#### ## #### ## ### ?????????? | | ## """""" % ;# #???##???????????????? | | " "## #???????????????????? | | %" % < "###### ????????????????? | | "|#"" "" " ""#????## ???????????????? | | ##"""""#"#" ###?????## ???????????????? | | #############????????### #??????????????? | | ???????????????????????# #???????????????? | | """ ??????????????????????? #???????????????? | | " " ?????????????????????? ????????????????? | | """ #????????????????????? ?????????????????? | | ## ??????????????????????????????????????????? | | ??? #?????????????????????????????????????????? | | #"????##?????????????????????????????????????????? | | ?#???????????????????????????????????????????????? | | ?????????????????????????????????????????????????? | | ?????????????????????????????????????????????????? | | ?????????????????????????????????????????????????? | | ?????????????????????????????????????????????????? | | ?????????????????????????????????????????????????? | | ?????????????????????????????????????????????????? | +----------------------------------------------------+ Best States ------------- Heat Dissipation 25 Energy Generation 17 Energy Capacity 250 Matter Stores 300 Matter Capacity 300 Sight Range 16 Terrain Scan Density 10 Armor Coverage 2000 Evasion (%) 55 Targeting Accuracy 5 Item Schematics ----------------- None Robot Schematics ------------------ None Fabricated ------------ Nothing Alien Tech Used ----------------- None Achievements -------------- None Challenges ------------ None Game ------ Seed CloakWarlordKinecellerator Manual? 0 Play Time 00:23:04 Cumulative 77.1 hours Start 2024.08.29 @ 18:07:35 End 2024.08.29 @ 18:36:03 Sessions 1 Manual Loads 0 Difficulty Rogue Special Mode None Game No. 129 Rogue 125 Adventurer 4 Explorer 0 Win Type - Total 0 Types 0/0/0/0/0/0/0/0/0 Lore% 35 Gallery% 46 Achievement% 35 Wizard Run 0 Options --------- Layout 2 ASCII 0 Keyboard 0 Movement Mouse Keybinds 0 Fullscreen 2 Font 24/Smallcaps Map View 50x44 Zoom Use 0% Tactical HUD 1 Map Filters NONE Filters NONE Steam 1 RUN: 31402169-fcef-41bc-84fd-40a43ab28cf9